bitfinex/quotes_SOLUSD_20250924
["timestamp","ask_amount","ask_price","bid_price","bid_amount"]
[1758677486844,1.43450855,215.72,215.7,0.71]
[1758677487337,1.43450855,215.74,215.71,0.71]
[1758677487650,1.43450855,215.74,215.72,0.71]
[1758677488217,1.43450855,215.74,215.73,4.6354239]
[1758677488418,1.43450855,215.74,215.73,5.3454239]
[1758677488834,1.43450855,215.76,215.73,5.3454239]
[1758677489042,26.0,215.76,215.74,0.71]
[1758677489225,26.0,215.76,215.75,0.71]
[1758677489423,27.43450855,215.76,215.75,0.71]
[1758677490468,26.0,215.74,215.67,0.2]
[1758677490745,1.43450855,215.68,215.67,0.2]
[1758677491251,1.43450855,215.68,215.67,4.83671349]
[1758677491446,27.43450855,215.7,215.67,4.83671349]
[1758677491652,26.0,215.71,215.68,0.71]
[1758677491821,26.0,215.71,215.69,0.71]
[1758677492019,26.0,215.71,215.67,5.54671349]
[1758677492243,26.0,215.71,215.67,4.83671349]
[1758677492444,26.0,215.71,215.67,5.54671349]
[1758677492832,26.0,215.71,215.67,17.13849723]
[1758677493633,26.0,215.71,215.68,0.71]
[1758677494047,1.43450855,215.72,215.69,0.71]
[1758677494246,1.43450855,215.72,215.67,17.13849723]
[1758677494426,1.43450855,215.72,215.68,0.71]
[1758677494821,1.43450855,215.72,215.67,16.42849723]
[1758677494822,27.43450855,215.76,215.7,16.22624014]
[1758677495747,27.43450855,215.74,215.7,4.63606861]
[1758677496424,28.09450855,215.74,215.7,4.63606861]
[1758677496624,27.43450855,215.74,215.7,5.34606861]
[1758677497248,1.43450855,215.72,215.68,4.63633258]
[1758677497826,1.43450855,215.72,215.68,5.34633258]
[1758677498034,2.09450855,215.72,215.67,0.2]
[1758677498334,1.43450855,215.73,215.68,0.71]
[1758677498532,2.09450855,215.73,215.68,0.71]
[1758677498849,1.43450855,215.73,215.67,4.83670118]
[1758677499058,0.66,215.72,215.67,4.83670118]
[1758677499239,0.66,215.72,215.67,5.54670118]
[1758677500130,27.43450855,215.69,215.67,0.2]
[1758677500340,28.09450855,215.69,215.67,0.2]
[1758677500854,28.09450855,215.71,215.67,4.83661997]
[1758677501034,26.0,215.7,215.67,4.83661997]
[1758677501235,26.66,215.7,215.67,4.83661997]
[1758677503756,26.0,215.7,215.67,4.83661997]
[1758677504148,26.66,215.7,215.67,0.2]
[1758677504455,0.66,215.69,215.67,0.2]
[1758677504841,0.66,215.68,215.67,0.2]
[1758677505244,14.25559401,215.68,215.67,0.2]
[1758677506260,18.89209252,215.68,215.67,0.2]
[1758677506647,14.25559401,215.68,215.67,0.2]
[1758677507557,18.89209252,215.68,215.67,0.2]
[1758677515148,15.69010256,215.68,215.67,0.2]
[1758677515344,20.32660107,215.68,215.67,0.2]
[1758677515648,27.43450855,215.71,215.67,5.53671349]
[1758677515851,27.43450855,215.71,215.68,0.7]
[1758677516077,1.43450855,215.69,215.67,0.2]
[1758677516241,26.0,215.68,215.67,0.9]
[1758677516438,26.0,215.68,215.67,5.53671349]
[1758677517675,1.43450855,215.69,215.67,5.53671349]
[1758677517873,26.0,215.71,215.68,0.7]
[1758677518553,26.0,215.73,215.68,0.7]
[1758677518973,27.43450855,215.76,215.68,0.7]
[1758677520461,27.43450855,215.76,215.69,16.22699243]
[1758677520790,27.43450855,215.76,215.7,0.7]
[1758677522295,26.0,215.74,215.7,0.7]
[1758677522577,26.0,215.74,215.71,16.22548792]
[1758677522759,26.0,215.74,215.72,0.7]
[1758677524755,26.0,215.74,215.73,4.6354239]
[1758677524959,26.0,215.74,215.73,5.3354239]
[1758677525158,26.0,215.74,215.73,4.6354239]
[1758677526163,28.91902942,215.74,215.67,11.7915462]
[1758677526369,133.9,215.73,215.67,12.4915462]
[1758677527276,133.9,215.73,215.68,16.2277448]
[1758677527583,134.58,215.73,215.68,16.9277448]
[1758677528183,133.9,215.73,215.69,0.7]
[1758677528353,133.9,215.73,215.68,16.2277448]
[1758677528354,133.9,215.73,215.7,0.7]
[1758677528766,136.81902942,215.78,215.71,0.7]
[1758677528980,26.0,215.75,215.71,0.7]
[1758677529559,26.0,215.75,215.72,0.7]
[1758677529982,26.0,215.75,215.73,0.7]
[1758677530168,26.0,215.75,215.68,39.41023738]
[1758677530369,26.0,215.75,215.71,0.7]
[1758677530677,136.81902942,215.78,215.72,0.7]
[1758677530862,160.58,215.78,215.73,16.22398367]
[1758677531176,160.58,215.78,215.73,16.92398367]
[1758677532880,159.9,215.78,215.74,0.7]
[1758677533186,2.89902942,215.84,215.74,0.7]
[1758677533486,6.03367408,215.87,215.74,0.7]
[1758677533668,0.66,215.87,215.75,13.59559401]
[1758677533980,0.66,215.89,215.77,13.59559401]
[1758677534182,26.0,215.87,215.78,0.7]
[1758677534361,0.66,215.89,215.79,13.59559401]
[1758677534562,0.66,215.91,215.8,0.7]
[1758677534778,26.0,215.9,215.8,0.7]
[1758677534984,0.66,215.91,215.81,39.38649737]
[1758677535169,0.66,215.91,215.82,0.7]
[1758677535374,26.0,215.9,215.82,0.7]
[1758677536099,0.66,215.91,215.82,0.7]
[1758677536260,36.94,215.94,215.82,0.7]
[1758677536459,26.0,215.91,215.82,0.7]
[1758677536788,0.66,215.96,215.83,13.59559401]
[1758677536969,2.23902942,215.98,215.85,13.59559401]
[1758677536970,0.66,215.95,215.85,13.59559401]
[1758677537286,0.66,215.95,215.86,16.91421291]
[1758677537495,26.66,215.95,215.86,16.91421291]
[1758677537667,26.66,215.95,215.87,0.7]
[1758677538361,30.37353788,215.95,215.85,4.63284688]
[1758677538569,0.66,215.94,215.86,0.7]
[1758677539363,26.0,215.95,215.86,0.7]
[1758677539788,26.66,215.95,215.86,0.7]
[1758677540288,26.66,215.95,215.87,16.21346179]
[1758677540705,26.66,215.95,215.87,16.87346179]
[1758677541196,0.71,215.94,215.87,16.87346179]
[1758677541490,26.0,215.95,215.88,0.66]
[1758677542693,26.0,215.95,215.89,16.21195979]
[1758677542895,26.0,215.95,215.89,16.87195979]
[1758677543583,26.71,215.95,215.89,16.21195979]
[1758677543786,0.71,215.94,215.89,16.21195979]
[1758677543987,0.71,215.93,215.89,16.21195979]
[1758677544285,26.71,215.95,215.89,16.87195979]
[1758677544993,26.0,215.95,215.89,16.21195979]
[1758677545199,26.0,215.95,215.9,0.66]
[1758677545499,0.71,215.97,215.91,0.66]
[1758677545500,133.9,215.97,215.91,0.66]
[1758677545681,0.71,216.02,215.92,13.59559401]
[1758677546004,0.71,216.04,215.94,13.59559401]
[1758677546195,0.71,216.04,215.95,0.66]
[1758677547099,0.71,216.04,215.96,16.20670493]
[1758677547300,26.71,216.04,215.97,0.66]
[1758677547501,0.71,216.04,215.97,0.66]
[1758677547799,26.71,216.04,215.97,0.66]
[1758677548800,26.71,216.04,215.98,16.20520417]
[1758677549010,26.0,216.03,215.98,16.20520417]
[1758677549303,26.0,216.03,215.96,4.63031031]
[1758677549304,2.23902942,216.01,215.96,4.63031031]
[1758677549480,2.23902942,216.01,215.92,11.57819208]
[1758677549481,2.23902942,215.99,215.93,4.63113045]
[1758677549680,0.71,215.98,215.93,4.63113045]
[1758677549898,0.71,215.97,215.91,4.63155944]
[1758677550207,0.71,215.97,215.91,16.21045805]
[1758677550586,2.94902942,216.0,215.92,0.66]
[1758677551102,0.71,216.0,215.93,16.20895659]
[1758677551404,0.71,216.0,215.93,16.86895659]
[1758677551607,26.0,216.02,215.94,0.66]
[1758677552508,0.71,216.01,215.94,0.66]
[1758677553292,2.94902942,216.01,215.95,4.63070155]
[1758677553700,2.94902942,216.01,215.95,16.20745542]
[1758677554208,0.71,216.0,215.95,16.20745542]
[1758677554887,0.71,216.0,215.95,16.86745542]
[1758677556391,2.23902942,216.01,215.95,5.29070155]
[1758677556594,0.71,216.0,215.95,16.86745542]
[1758677557197,2.94902942,215.99,215.93,4.63113045]
[1758677557386,2.23902942,215.97,215.89,12.23956312]
[1758677557594,0.71,215.96,215.9,36.2]
[1758677557795,0.71,215.96,215.9,40.83177396]
[1758677558118,0.71,215.96,215.9,52.41120888]
[1758677558317,2.23902942,215.97,215.9,52.41120888]
[1758677558318,26.0,215.94,215.9,4.63177396]
[1758677558626,0.71,215.94,215.9,4.63177396]
[1758677559404,0.71,215.94,215.88,4.63220307]
[1758677559918,13.59559401,216.0,215.88,16.21271075]
[1758677560116,2.23902942,215.98,215.89,0.66]
[1758677560491,2.23902942,215.96,215.89,0.66]
[1758677561418,2.23902942,215.96,215.9,16.21120888]
[1758677561898,2.23902942,215.96,215.91,0.66]
[1758677562104,28.94902942,215.97,215.92,0.66]
[1758677562319,28.23902942,215.97,215.92,0.66]
[1758677562621,0.71,215.96,215.92,0.66]
[1758677563215,0.71,215.96,215.9,16.87120888]
[1758677563520,2.23902942,215.94,215.89,4.63198851]
[1758677563819,2.23902942,215.94,215.89,5.29198851]
[1758677564011,2.94902942,215.94,215.89,16.87195979]
[1758677564817,0.71,215.93,215.89,4.63198851]
[1758677565321,2.94902942,215.92,215.84,0.66]
[1758677565539,0.71,215.92,215.86,4.63263226]
[1758677565821,2.23902942,215.9,215.86,4.63263226]
[1758677566197,0.71,215.89,215.86,4.63263226]
[1758677566600,2.94902942,215.88,215.84,4.63289348]
[1758677567026,2.23902942,215.86,215.82,4.63339875]
[1758677567238,0.71,215.85,215.82,4.63339875]
[1758677567406,2.23902942,215.86,215.82,4.63339875]
[1758677567724,2.23902942,215.86,215.83,4.63326374]
[1758677567915,2.23902942,215.86,215.81,4.63353877]
[1758677568119,2.94902942,215.86,215.81,5.29353877]
[1758677568807,2.23902942,215.86,215.81,5.29353877]
[1758677569006,2.94902942,215.86,215.81,5.29353877]
[1758677570527,2.94902942,215.86,215.82,0.66]
[1758677570730,2.23902942,215.86,215.82,0.66]
[1758677571025,2.93902942,215.86,215.81,4.63353877]
[1758677571209,2.93902942,215.86,215.81,5.29353877]
[1758677571928,0.7,215.85,215.79,4.63394803]
[1758677572224,0.7,215.85,215.8,36.22]
[1758677572425,0.7,215.85,215.8,36.88]
[1758677572729,28.23902942,215.88,215.81,0.66]
[1758677572914,2.23902942,215.92,215.82,13.59559401]
[1758677573119,2.23902942,215.94,215.83,0.66]
[1758677573340,2.23902942,215.92,215.83,0.66]
[1758677573935,2.23902942,215.92,215.84,16.21571533]
[1758677574234,2.23902942,215.92,215.85,36.88]
[1758677574533,2.23902942,215.92,215.86,0.66]
[1758677575631,0.7,215.93,215.86,0.66]
[1758677575831,2.23902942,215.94,215.86,0.66]
[1758677576030,2.23902942,215.94,215.87,4.63241765]
[1758677576213,2.93902942,215.94,215.87,4.63241765]
[1758677577633,28.23902942,215.96,215.88,0.66]
[1758677577809,2.23902942,215.96,215.88,0.66]
[1758677578002,2.23902942,215.96,215.89,4.63198851]
[1758677578234,2.23902942,215.96,215.89,5.29198851]
[1758677578430,26.7,215.95,215.89,5.29198851]
[1758677579731,0.7,215.95,215.89,5.29198851]
[1758677580553,2.23902942,215.96,215.89,16.87195979]
[1758677580730,0.7,215.97,215.9,36.84]
[1758677581054,0.7,215.96,215.9,36.18]
[1758677581233,2.23902942,215.95,215.9,36.18]
[1758677581551,2.93902942,215.95,215.9,36.18]
[1758677582147,2.93902942,215.95,215.91,4.63155944]
[1758677583260,2.23902942,215.93,215.85,0.66]
[1758677583547,0.7,215.92,215.85,36.84]
[1758677584048,23.14526913,216.03,215.85,36.84]
[1758677584049,0.7,215.97,215.86,0.66]
[1758677584350,28.93902942,215.97,215.87,16.21346179]
[1758677584533,1.43072823,215.94,215.88,0.66]
[1758677584734,2.13072823,215.94,215.88,0.66]
[1758677585161,1.43072823,215.92,215.87,40.81241765]
[1758677585655,1.43072823,215.9,215.86,40.83260844]
[1758677585868,27.43072823,215.9,215.86,40.83260844]
[1758677586156,27.43072823,215.9,215.84,0.66]
[1758677586360,1.43072823,215.88,215.84,36.2]
[1758677586729,0.7,215.87,215.79,0.66]
[1758677586925,1.43072823,215.86,215.8,52.41872103]
[1758677587141,1.43072823,215.88,215.81,0.66]
[1758677587636,0.7,215.87,215.8,40.85392029]
[1758677587850,1.43072823,215.88,215.81,0.66]
[1758677588258,1.43072823,215.88,215.82,4.63349087]
[1758677588551,1.43072823,215.91,215.83,0.66]
[1758677589236,2.13072823,215.93,215.83,0.66]
[1758677590368,2.13072823,215.93,215.84,16.21571533]
[1758677590566,0.7,215.92,215.85,36.26]
[1758677590859,1.43072823,215.91,215.85,36.92]
[1758677591062,2.13072823,215.93,215.85,36.92]
[1758677591358,26.0,215.91,215.85,36.92]
[1758677592235,0.7,215.92,215.85,36.92]
[1758677592835,0.7,215.92,215.86,4.63263226]
[1758677593050,26.0,215.9,215.85,41.55282701]
[1758677593357,27.43072823,215.89,215.83,4.63322159]
[1758677593556,0.72,215.89,215.83,36.24]
[1758677593759,1.43072823,215.87,215.83,36.24]
[1758677593947,0.72,215.86,215.83,36.24]
[1758677594143,2.15072823,215.85,215.79,0.7]
[1758677594339,1.43072823,215.85,215.79,41.57407594]
[1758677594543,1.43072823,215.87,215.8,0.7]
[1758677594769,0.72,215.88,215.8,0.7]
[1758677595056,26.0,215.9,215.82,13.59559401]
[1758677595257,26.0,215.9,215.83,0.7]
[1758677595563,26.0,215.9,215.84,36.26]
[1758677595744,1.43072823,215.93,215.85,0.7]
[1758677596551,2.15072823,215.94,215.85,0.7]
[1758677597237,2.15072823,215.94,215.86,4.63263226]
[1758677597663,2.15072823,215.94,215.86,16.91421291]
[1758677598063,0.72,215.94,215.87,0.7]
[1758677598574,2.15072823,215.94,215.87,0.7]
[1758677599341,28.15072823,215.94,215.88,4.63220307]
[1758677599561,0.72,215.93,215.88,4.63220307]
[1758677599776,0.72,215.92,215.88,4.63220307]
[1758677600781,0.72,215.92,215.86,47.84158065]
[1758677600782,26.0,215.9,215.87,4.63241765]
[1758677604843,26.66,215.89,215.82,0.67]
[1758677605048,0.66,215.89,215.82,0.67]
[1758677605243,0.66,215.89,215.83,36.22]
[1758677605472,0.66,215.88,215.83,36.22]
[1758677605673,0.66,215.87,215.83,36.22]
[1758677605865,0.66,215.87,215.84,4.63306152]
[1758677606067,1.43072823,215.9,215.83,36.89]
[1758677606068,0.66,215.86,215.83,36.22]
[1758677606453,0.66,215.85,215.83,36.22]
[1758677606973,2.09072823,215.84,215.76,16.89172784]
[1758677607171,1.43072823,215.82,215.76,4.63477938]
[1758677607489,1.43072823,215.8,215.74,40.91508393]
[1758677607702,0.66,215.79,215.74,40.91508393]
[1758677607990,0.66,215.79,215.74,41.58508393]
[1758677608356,26.66,215.79,215.74,41.58508393]
[1758677608988,0.66,215.79,215.74,52.50310654]
[1758677609151,26.0,215.8,215.75,0.67]
[1758677609567,1.43072823,215.82,215.75,0.67]
[1758677609776,27.43072823,215.84,215.75,0.67]
[1758677609994,27.43072823,215.84,215.76,16.22172784]
[1758677610173,1.43072823,215.84,215.77,0.67]
[1758677611080,1.43072823,215.82,215.76,16.22172784]
[1758677611285,2.09072823,215.82,215.76,16.89172784]
[1758677611873,2.09072823,215.82,215.77,36.28]
[1758677612180,2.09072823,215.82,215.78,4.6343498]
[1758677612687,1.43072823,215.84,215.79,0.67]
[1758677612897,2.09072823,215.84,215.79,0.67]
[1758677613185,0.66,215.83,215.78,16.2202243]
[1758677613394,0.66,215.83,215.79,36.28]
[1758677614064,0.66,215.83,215.8,4.63392029]
[1758677614264,0.66,215.82,215.79,36.28]
[1758677614479,1.43072823,215.8,215.73,0.67]
[1758677614692,2.09072823,215.8,215.74,36.28]
[1758677615668,2.09072823,215.8,215.74,36.95]
[1758677616205,2.09072823,215.8,215.75,4.6349942]
[1758677616377,1.43072823,215.8,215.75,4.6349942]
[1758677616695,0.66,215.79,215.75,4.6349942]
[1758677618498,1.43072823,215.8,215.75,4.6349942]
[1758677618681,2.09072823,215.78,215.75,4.6349942]
[1758677619096,2.09072823,215.78,215.68,16.01764276]
[1758677619097,1.43072823,215.76,215.71,4.63585369]
[1758677619403,2.09072823,215.76,215.73,36.26]
[1758677619694,1.43072823,215.74,215.71,4.63585369]
[1758677619903,1.43072823,215.74,215.71,40.93585369]
[1758677621097,1.43072823,215.72,215.67,0.2]
[1758677621283,1.43072823,215.72,215.68,0.67]
[1758677621489,1.43072823,215.74,215.69,0.67]
[1758677621694,26.0,215.75,215.7,0.67]
[1758677621887,26.0,215.75,215.71,0.67]
[1758677622090,1.43072823,215.76,215.72,0.67]
[1758677622414,26.66,215.79,215.73,0.67]
[1758677622415,1.43072823,215.78,215.73,0.67]
[1758677622578,1.43072823,215.78,215.74,0.67]
[1758677623082,1.43072823,215.78,215.75,4.6349942]
[1758677623492,1.43072823,215.76,215.73,4.63535035]
[1758677623710,0.66,215.75,215.73,4.63535035]
[1758677624196,1.43072823,215.76,215.73,4.63535035]
[1758677624684,1.43072823,215.76,215.73,5.30535035]
[1758677625094,1.43072823,215.76,215.73,16.22391012]
[1758677625808,1.43072823,215.76,215.73,4.63535035]
[1758677625987,2.09072823,215.76,215.73,4.63535035]
[1758677627112,2.09072823,215.76,215.72,4.63563879]
[1758677627313,28.09072823,215.76,215.72,4.63563879]
[1758677627487,27.43072823,215.76,215.72,4.63563879]
[1758677627689,1.43072823,215.74,215.72,4.63563879]
[1758677628218,1.43072823,215.74,215.71,36.28]
[1758677628390,0.66,215.73,215.69,36.3]
[1758677628582,0.66,215.75,215.69,36.97]
[1758677628782,1.43072823,215.74,215.7,0.67]
[1758677629115,0.66,215.73,215.69,40.93621607]
[1758677629311,1.43072823,215.74,215.7,0.67]
[1758677630303,1.43072823,215.74,215.69,40.93621607]
[1758677630506,0.67,215.73,215.69,40.93621607]
[1758677631409,2.10072823,215.72,215.69,36.3]
[1758677631717,0.67,215.71,215.69,36.3]
[1758677632009,0.67,215.71,215.67,36.48]
[1758677632010,2.10072823,215.7,215.67,36.48]
[1758677632208,0.67,215.69,215.67,0.2]
[1758677632415,1.43072823,215.68,215.67,0.2]
[1758677632576,2.10072823,215.68,215.67,0.2]
[1758677634601,1.43072823,215.69,215.67,4.83671084]
[1758677634797,159.9,215.7,215.67,5.53671084]
[1758677635193,159.9,215.7,215.67,4.83671084]
[1758677635581,159.9,215.7,215.68,0.7]
[1758677635786,159.9,215.7,215.67,16.42849458]
[1758677636091,28.10072823,215.75,215.68,37.0]
[1758677636292,1.43072823,215.78,215.69,0.7]
[1758677637014,2.10072823,215.78,215.69,0.7]
[1758677637814,2.10072823,215.78,215.7,16.22624014]
[1758677638013,2.10072823,215.78,215.7,16.92624014]
[1758677638592,2.10072823,215.78,215.71,0.7]
[1758677639814,2.10072823,215.78,215.72,16.22473576]
[1758677640114,0.67,215.78,215.73,36.34]
[1758677640313,0.67,215.78,215.73,37.04]
[1758677641918,0.67,215.78,215.74,4.63520904]
[1758677643312,0.67,215.77,215.73,36.34]
[1758677643615,1.43072823,215.78,215.73,36.34]
[1758677643616,26.0,215.78,215.73,37.04]
[1758677643826,2.10072823,215.78,215.73,41.67531918]
[1758677644196,1.43072823,215.78,215.73,5.33531918]
[1758677644396,0.67,215.77,215.73,5.33531918]
[1758677644625,28.2387369,215.78,215.72,36.32]
[1758677644812,28.2387369,215.74,215.67,0.2]
[1758677645022,28.2387369,215.74,215.68,36.32]
[1758677645320,2.2387369,215.72,215.68,36.32]
[1758677645525,2.2387369,215.7,215.68,36.32]
[1758677645706,0.67,215.69,215.68,36.32]
[1758677646095,26.0,215.68,215.67,0.2]
[1758677646306,28.9087369,215.68,215.67,0.2]
[1758677646493,2.9087369,215.68,215.67,0.2]
[1758677647198,28.2387369,215.68,215.67,0.2]
[1758677647399,28.9087369,215.68,215.67,0.2]
[1758677647994,28.2387369,215.68,215.67,0.2]
[1758677648222,26.0,215.69,215.67,0.2]
[1758677648428,26.0,215.69,215.67,0.9]
[1758677649433,26.0,215.72,215.67,0.9]
[1758677649600,0.67,215.71,215.67,5.53671349]
[1758677650116,2.2387369,215.71,215.67,0.2]
[1758677650312,2.9087369,215.71,215.67,0.2]
[1758677651424,26.0,215.72,215.68,0.7]
[1758677651604,2.2387369,215.73,215.68,0.7]
[1758677652429,26.0,215.71,215.67,4.83669453]
[1758677652611,26.0,215.71,215.67,5.53669453]
[1758677653742,0.67,215.72,215.67,5.53669453]
[1758677654412,2.2387369,215.73,215.67,5.53669453]
[1758677654615,26.0,215.71,215.67,5.53669453]
[1758677654817,26.68,215.71,215.67,5.53669453]
[1758677656732,0.68,215.71,215.67,5.53669453]
[1758677656914,2.2387369,215.73,215.67,4.83669453]
[1758677657229,26.0,215.74,215.68,0.7]
[1758677657409,26.68,215.74,215.68,0.7]
[1758677657605,26.0,215.74,215.68,0.7]
[1758677657806,2.2387369,215.75,215.68,0.7]
[1758677658224,26.68,215.76,215.68,0.7]
[1758677658531,28.9187369,215.76,215.68,0.7]
[1758677659029,2.9187369,215.76,215.69,4.63628355]
[1758677659226,134.58,215.79,215.7,0.7]
[1758677659409,0.68,215.78,215.7,0.7]
[1758677659727,26.0,215.76,215.7,0.7]
[1758677660416,0.68,215.78,215.7,0.7]
[1758677660620,133.9,215.79,215.7,0.7]
[1758677660821,28.9187369,215.8,215.7,0.7]
[1758677661214,28.9187369,215.8,215.71,16.22548792]
[1758677661430,28.9187369,215.8,215.72,0.72]
[1758677661431,26.0,215.79,215.72,0.72]
[1758677662125,0.68,215.8,215.72,0.72]
[1758677662322,26.68,215.8,215.73,16.22398367]
[1758677662917,0.68,215.79,215.73,16.22398367]
[1758677663116,26.68,215.79,215.73,16.22398367]
[1758677664222,0.68,215.79,215.73,16.22398367]
[1758677664549,0.68,215.79,215.73,16.94398367]
[1758677667339,0.68,215.79,215.73,5.3554239]
[1758677667530,0.68,215.78,215.73,4.6354239]
[1758677667730,0.68,215.77,215.73,5.3554239]
[1758677667917,2.2387369,215.8,215.73,5.3554239]
[1758677668242,0.68,215.79,215.73,4.6354239]
[1758677668441,0.68,215.78,215.72,16.22452633]
[1758677668641,0.68,215.78,215.72,16.94452633]
[1758677670345,0.68,215.78,215.72,5.35563879]
[1758677671852,133.9,215.79,215.73,0.72]
[1758677672234,134.58,215.79,215.73,0.72]
[1758677672741,134.58,215.79,215.74,4.63520904]
[1758677673045,134.58,215.79,215.74,5.35520904]
[1758677673857,0.68,215.78,215.74,5.35520904]
[1758677675224,0.68,215.78,215.72,0.72]
[1758677675429,0.68,215.78,215.72,5.35563879]
[1758677675732,0.68,215.78,215.73,0.72]
[1758677675936,0.68,215.78,215.74,0.72]
[1758677677651,28.9187369,215.83,215.75,16.94247971]
[1758677677827,26.0,215.83,215.76,0.72]
[1758677678225,26.68,215.84,215.76,0.72]
[1758677678445,26.0,215.83,215.76,0.72]
[1758677678933,0.68,215.82,215.76,0.72]
[1758677679748,0.68,215.82,215.77,16.22097603]
[1758677679953,0.68,215.82,215.78,0.72]
[1758677680256,0.68,215.82,215.77,16.22097603]
[1758677680431,2.9187369,215.81,215.67,0.2]
[1758677680633,2.2387369,215.79,215.71,0.72]
[1758677680828,2.2387369,215.77,215.71,0.72]
[1758677681051,0.68,215.76,215.71,0.72]
[1758677681265,2.2387369,215.77,215.72,0.72]
[1758677681460,0.68,215.77,215.72,0.72]
[1758677681754,0.68,215.76,215.73,4.6354239]
[1758677681934,26.0,215.77,215.73,4.6354239]
[1758677682134,26.68,215.76,215.72,4.63561655]
[1758677682331,26.0,215.76,215.72,4.63561655]
[1758677682643,0.68,215.75,215.72,4.63561655]
[1758677683038,6.87287493,215.79,215.72,4.63561655]
[1758677683244,0.68,215.77,215.72,4.63561655]
[1758677683540,0.68,215.76,215.72,4.63561655]
[1758677683772,0.68,215.76,215.71,4.63585369]
[1758677683959,0.68,215.76,215.71,5.35585369]
[1758677684558,0.68,215.76,215.72,0.72]
[1758677685764,0.68,215.76,215.73,4.6354239]
[1758677685947,2.9187369,215.75,215.68,4.63649851]
[1758677686257,2.9187369,215.75,215.67,0.2]
[1758677686258,0.68,215.74,215.67,0.2]
[1758677686442,2.2387369,215.73,215.67,0.2]
[1758677686649,26.68,215.72,215.67,4.8366512]
[1758677686956,0.68,215.71,215.67,4.8366512]
[1758677687262,2.2387369,215.73,215.67,4.8366512]
[1758677687431,0.68,215.72,215.67,4.8366512]
[1758677687636,26.68,215.71,215.67,4.8366512]
[1758677688332,0.68,215.7,215.67,0.2]
[1758677689536,0.68,215.69,215.67,0.2]
[1758677689736,26.0,215.68,215.67,0.2]
[1758677689961,26.68,215.68,215.67,0.2]
[1758677690657,28.8987369,215.73,215.67,0.88]
[1758677690840,26.0,215.7,215.67,0.2]
[1758677691242,0.66,215.69,215.67,0.2]
[1758677691458,0.66,215.68,215.67,0.2]
[1758677696039,28.2387369,215.69,215.67,0.2]
[1758677696291,26.66,215.68,215.67,0.2]
[1758677696858,26.0,215.68,215.67,0.2]
[1758677697065,133.9,215.72,215.67,5.51671349]
[1758677697259,159.9,215.72,215.67,4.83671349]
[1758677697451,159.9,215.72,215.68,0.68]
[1758677697966,159.9,215.72,215.68,5.31630323]
[1758677698171,160.56,215.72,215.68,5.31630323]
[1758677699273,0.66,215.71,215.68,4.63630323]
[1758677700374,0.66,215.7,215.67,0.2]
[1758677700558,2.2387369,215.71,215.67,5.51668405]
[1758677700759,159.9,215.72,215.67,4.83668405]
[1758677700950,0.66,215.71,215.67,0.2]
[1758677701151,0.66,215.7,215.67,4.83670552]
[1758677701462,0.66,215.69,215.67,4.83670552]
[1758677701858,2.2387369,215.71,215.67,4.83670552]
[1758677702376,160.56,215.72,215.67,5.51670552]
[1758677702574,159.9,215.72,215.67,5.51670552]
[1758677702770,160.56,215.72,215.67,4.83670552]
[1758677703070,0.66,215.71,215.67,5.51670552]
[1758677704277,159.9,215.72,215.67,5.51670552]
[1758677704451,160.56,215.72,215.67,4.83670552]
[1758677704656,159.9,215.72,215.68,0.68]
[1758677705074,159.9,215.72,215.69,0.68]